Cogmind - Beta 14 @@@ ROGUE MODE // 2024.08.08 @ 18:09:28 Player: J1ang-5h1 Result: Destroyed by 1C-T6Y(R) with Subdweller Machine Gun Performance ------------- Evolutions (0) 0 Regions Visited (2) 400 Robots Destroyed (34) 170 Value Destroyed (795) 795 Prototype IDs (0) 0 Alien Tech Used (0) 0 Bonus (0) 0 TOTAL SCORE: 1365 Bonus ------- None Cogmind --------- Core Integrity 0/250 Matter 25/300 Energy 265/265 System Corruption 0% Temperature Cool (0) Movement Rolling (140) Ox4 Location -10/Subcaves Parts ------- > --- POWER (1) -------- Improved Ion Engine > --- PROPULSION (2) --- Wheel Wheel > --- UTILITY (2) ------ Huge Storage Unit Structural Scanner > --- WEAPON (2) ------- Heavy Assault Rifle Heavy Assault Rifle > --- INVENTORY (25) --- Improved Ion Engine Improved Ion Engine Improved Aluminum Leg Improved Aluminum Leg Improved Aluminum Leg Improved Aluminum Leg Subdweller Monowheel Subdweller Monowheel Subdweller Monowheel Subdweller Optics Improved Terrain Scanner Seismic Detector Medium Armor Plating Medium Armor Plating Medium Armor Plating Medium Armor Plating Medium Armor Plating Scrap Shield Subdweller Beam Cannon Multitool Scrap Shield Fragment (49) Scrap Shield Fragment (47) Peak State ------------ > --- POWER ------------ Improved Ion Engine > --- PROPULSION ------- Improved Aluminum Leg Improved Aluminum Leg > --- UTILITY ---------- Huge Storage Unit Medium Armor Plating > --- WEAPON ----------- Heavy Assault Rifle Heavy Assault Rifle > --- INVENTORY -------- Improved Ion Engine Improved Ion Engine Improved Ion Engine Improved Aluminum Leg Improved Aluminum Leg Wheel Wheel Structural Scanner Subdweller Optics Improved Terrain Scanner Seismic Detector Medium Armor Plating Medium Armor Plating Medium Armor Plating Medium Armor Plating Medium Armor Plating Scrap Shield Subdweller Beam Cannon Heavy Assault Rifle Heavy Assault Rifle Scrap Shield Fragment Scrap Shield Fragment [Rating: 17] Favorites ----------- Power Ion Engine Engine Ion Engine Propulsion Aluminum Leg Treads Light Treads Leg Aluminum Leg Wheel Wheel Utility Medium Armor Plating Device Seismic Detector Storage Huge Storage Unit Protection Medium Armor Plating Weapon Heavy Assault Rifle Energy Gun Medium Laser Ballistic Gun Heavy Assault Rifle Launcher Grenade Launcher Special Weapon Multitool Build | -11 -10 -10 ------- Run | Yrd Mat Sub Slots Evolved . | . . . Power . | . . . Propulsion . | . . . Utility . | . . . Weapon . | . . . Parts Attached 33 | . 14 19 Power 3 | . 2 1 Engine 3 | . 2 1 Core . | . . . Reactor . | . . . Propulsion 11 | . 4 7 Treads 1 | . 1 . Leg 3 | . 1 2 Wheel 7 | . 2 5 Hover . | . . . Flight . | . . . Utility 10 | . 5 5 Device 3 | . 1 2 Storage 2 | . 2 . Processor . | . . . Hackware . | . . . Protection 5 | . 2 3 Artifact . | . . . Weapon 9 | . 3 6 Energy Gun . | . . . Energy Cannon . | . . . Ballistic Gun 6 | . 2 4 Ballistic Cannon . | . . . Launcher 2 | . 1 1 Special Weapon 1 | . . 1 Impact Weapon . | . . . Slashing Weapon . | . . . Piercing Weapon . | . . . Special Melee Weapon . | . . . Unidentified Prototypes . | . . . Parts Lost 8 | . 1 7 Power 1 | . . 1 Propulsion 3 | . 1 2 Utility 1 | . . 1 Weapon 3 | . . 3 Highest Loss Streak 4 | . 1 4 To Critical Strikes . | . . . Average Slot Usage (%) 99 | . 100 97 Engine 14 | . 14 14 Leg 11 | . 16 1 Wheel 15 | . 11 24 Device 2 | . 2 4 Storage 14 | . 14 14 Protection 11 | . 11 9 Energy Gun 1 | . 2 . Ballistic Gun 25 | . 25 27 Peak Build Rating 17 | 7 15 17 Average Rating 12 | 6 11 14 On Entrance 9 | 6 7 15 Naked Turns . | . . . Heaviest Build 100 | 13 100 100 Greatest Support 26 | 20 26 26 Greatest Overweight (x) 9 | . 4 9 Average Overweight (x) 2 | . 2 4 Largest Inventory Capacity 25 | 8 25 25 Average Capacity 21 | 8 20 25 Most Carried 25 | 8 25 25 Average Carried 17 | 6 15 24 Final Capacity 25 | 8 25 25 Final Carried 25 | 8 25 23 Class Distribution -------------------- 100% | Mutant Dominant Class ---------------- Mutant | -10/Materials Mutant | -10/Subcaves Resources | -11 -10 -10 ----------- Run | Yrd Mat Sub Matter Collected 727 | 209 396 122 Remotely . | . . . Salvage Created 1019 | 117 606 296 Parts 86 | 8 56 22 Haulers Intercepted 1 | . 1 . Recyclers Shooed 2 | . 2 . Parts Field Recycled . | . . . Retrieved Matter . | . . . Parts Self-Destructed . | . . . Prevented . | . . . Kills | -11 -10 -10 ------- Run | Yrd Mat Sub Combat Hostiles Destroyed 25 | . 17 8 Guns 20 | . 14 6 AOE 5 | . 3 2 Classes Destroyed 9 | 2 6 1 Worker 1 | . 1 . Builder 1 | . 1 . Tunneler 2 | 2 . . Hauler 1 | . 1 . Recycler 1 | 1 . . Watcher 3 | . 3 . Swarmer 8 | . 8 . Grunt 9 | . 9 . Subdweller 8 | . . 8 Best Kill Streak 6 | 2 6 3 Combat Bots Only 6 | . 6 3 Max Kills in Single Turn 2 | 1 2 1 Gunslinging 1 | . 1 . Exploded 2 | . 2 1 Melee . | . . . Uniques/NPCs Destroyed . | . . . Combat | -11 -10 -10 -------- Run | Yrd Mat Sub Hostile Shots Fired 142 | . 78 64 Missed 34 | . 14 20 Damage Taken 1727 | . 632 1095 Core 273 | . 111 162 Absorbed by Shields . | . . . Regen/Repaired (Parts) 13 | . 13 . Core Remaining (%) 100 | 100 . . Volleys Fired 118 | 9 73 36 Largest 2 | 2 2 2 Hottest 70 | 70 70 53 Shots Fired 234 | 18 144 72 Gun 229 | 18 142 69 Cannon . | . . . Launcher 5 | . 2 3 Special . | . . . Kinetic 182 | 9 104 69 Thermal 47 | 9 38 . Explosive 5 | . 2 3 Electromagnetic . | . . . Robot Hit Streak 13 | 7 6 13 Robot Miss Streak 4 | 3 4 1 Penetration Max . | . . . Secondary Targets 2 | . 1 1 Max Gunslinging Chain 1 | . 1 1 Shots Hit Robots 154 | 12 84 58 Core Hits 58 | 5 35 18 Critical Kills 1 | . 1 . Critical Parts Destroyed . | . . . Critical Strikes 7 | 2 5 . Burn 6 | 2 4 . Destroy 1 | . 1 . Melee Attacks . | . . . Impact . | . . . Slashing . | . . . Piercing . | . . . Sneak Attacks . | . . . Combat Hostiles . | . . . Follow-up Attacks . | . . . Damage Inflicted 2369 | 131 1176 1062 Guns 1994 | 131 1005 858 Cannons . | . . . Explosions 375 | . 171 204 Melee . | . . . Ramming . | . . . Kinetic 1619 | 44 717 858 Thermal 375 | 87 288 . Explosive 375 | . 171 204 Electromagnetic . | . . . Impact . | . . . Slashing . | . . . Piercing . | . . . Highest Corruption . | . . . Average Corruption . | . . . Corruption Purged . | . . . Corruption Blocked . | . . . Overload Shots . | . . . Overflow Damage 7 | . 7 . Projectiles . | . . . Explosions 7 | . 7 . Melee . | . . . Knockbacks . | . . . Impact . | . . . Kinetic . | . . . Secondary . | . . . Self-Inflicted Damage 13 | . . 13 Shots 1 | . . 1 Rammed . | . . . Targets Rammed . | . . . Kicked . | . . . Crushed . | . . . Highest Temperature 235 | 90 235 . Average Temperature 66 | 42 70 . Received Heat Transfer 441 | . 249 192 Siege Activations . | . . . Robots Corrupted . | . . . Combat Hostiles . | . . . Parts Fried . | . . . Impact Corruptions . | . . . Robots Melted . | . . . Combat Hostiles . | . . . Parts Melted 2 | 1 1 . Heat Transferred 1554 | 407 1147 . Parts Sabotaged . | . . . Parts Stolen . | . . . Parts Stripped . | . . . Power Chain Reactions . | . . . Alert | -11 -10 -10 ------- Run | Yrd Mat Sub Peak Influence 322 | 15 322 . Initial 9 | . 9 . Average 75 | 9 77 . Maximum Alert Level 1 | . 1 . Low Security (%) 85 | 100 84 . Level 1 14 | . 15 . Level 2 . | . . . Level 3 . | . . . Level 4 . | . . . Level 5 . | . . . High Security . | . . . Max Security . | . . . Squads Dispatched 2 | . 2 . Investigation 1 | . 1 . Extermination . | . . . Reinforcement 1 | . 1 . Assault . | . . . Garrison . | . . . Intercept . | . . . Searches Triggered . | . . . Construction Impeded . | . . . Haulers Reinforced . | . . . Active Scanning Responses . | . . . Cargo Convoy Interrupts . | . . . Stealth | -11 -10 -10 --------- Run | Yrd Mat Sub Distress Signals 4 | . 4 . Communications Jammed . | . . . Distress Signals . | . . . Times Spotted 41 | . 28 13 Peak Tracking Total 6 | . 6 4 Tactical Retreats 1 | . 1 . Traps | -11 -10 -10 ------- Run | Yrd Mat Sub Traps Triggered 1 | . 1 . Indirectly . | . . . Trap Hack Attempts . | . . . Triggered . | . . . Disarmed . | . . . Reprogrammed . | . . . Reused . | . . . Traps Extracted . | . . . Installed . | . . . Triggered . | . . . Machines | -11 -10 -10 ---------- Run | Yrd Mat Sub Machines Disabled . | . . . Max in Single Turn . | . . . Machines Repaired . | . . . Machines Dismantled . | . . . Machines Sabotaged . | . . . Overloaded Fab Kills . | . . . Hacking | -11 -10 -10 --------- Run | Yrd Mat Sub Machines Accessed 4 | . 4 . Terminals 2 | . 2 . Fabricators . | . . . Repair Stations 1 | . 1 . Recycling Units 1 | . 1 . Scanalyzers . | . . . Garrison Access . | . . . Total Hacks 11 | . 11 . Successful 6 | . 6 . Failed 5 | . 5 . Catastrophic . | . . . Database Lockouts . | . . . Manual 4 | . 4 . Terminals 5 | . 5 . Fabricators . | . . . Repair Stations 3 | . 3 . Recycling Units 3 | . 3 . Scanalyzers . | . . . Garrison Access . | . . . Terminal Hacks 1 | . 1 . Locate Traps 1 | . 1 . Fabricator Hacks . | . . . Repair Station Hacks 2 | . 2 . Scan Component 1 | . 1 . Repair 1 | . 1 . Recycling Unit Hacks 2 | . 2 . Process 1 | . 1 . Report Inventory 1 | . 1 . Scanalyzer . | . . . Garrison Access Hacks . | . . . Unauthorized Hacks 1 | . 1 . Terminals 1 | . 1 . Botnet 1 | . 1 . Fabricators . | . . . Repair Stations . | . . . Recycling Units . | . . . Scanalyzers . | . . . Garrison Access . | . . . Data Cores Recovered . | . . . Used . | . . . Hacking Detections 3 | . 3 . Full Trace Events . | . . . Feedback Events . | . . . Feedback Blocked . | . . . Robot Schematics Acquired . | . . . Robots Built . | . . . Authchips . | . . . Time . | . . . Total Robot Build Rating . | . . . Part Schematics Acquired . | . . . Parts Built . | . . . Authchips . | . . . Time . | . . . Total Part Build Rating . | . . . Parts Repaired 1 | . 1 . Time 26 | . 26 . Parts Recycled . | . . . Recycled Matter 124 | . 124 . Retrieved Matter . | . . . Retrieved Components . | . . . Parts Scanalyzed . | . . . Part Schematics Acquired . | . . . Parts Damaged . | . . . Bothacking | -11 -10 -10 ------------ Run | Yrd Mat Sub Used RIF Installer . | . . . Robots Hacked . | . . . Non-combat . | . . . Combat . | . . . Robot Hacks Applied . | . . . Relay Couplers Released . | . . . Fabnet Peak Effective % . | . . . Robots Rewired . | . . . Allies Hacked . | . . . Hacks Repelled . | . . . Allies | -11 -10 -10 -------- Run | Yrd Mat Sub Total Allies . | . . . Largest Group . | . . . Highest-Rated Group . | . . . Highest-Rated Ally . | . . . Total Orders . | . . . Ally Attacks . | . . . Total Damage . | . . . Kills . | . . . Allies Corrupted . | . . . Allies Melted . | . . . Intel | -11 -10 -10 ------- Run | Yrd Mat Sub Robot Analysis Total . | . . . Derelict Logs Recovered . | . . . Drone Launches . | . . . Drone Recoveries . | . . . Exploration | -11 -10 -10 ------------- Run | Yrd Mat Sub Turns Passed 3150 | 79 2163 908 Spaces Moved 1539 | 21 1000 518 Core . | . . . Treads 5 | . 5 . Legs 498 | 21 477 . Wheels 1036 | . 518 518 Hover . | . . . Flight . | . . . Fastest Speed 120 | 120 120 135 Average Speed 163 | 120 174 145 Slowest Speed 400 | 120 400 215 Overloaded Moves . | . . . Propulsion Burnouts . | . . . Robots Hopped . | . . . Cave-ins Triggered . | . . . Exploration Rate (%) 34 | 3 70 29 Regions Visited 2 Branch Regions 1 Pre-discovered Areas . | . . . Known Exits Taken . | . . . Unknown Exits Taken 2 | 1 1 . Scrap Searched . | . . . Spaces Dug . | . . . Terrain Destroyed 21 | . 7 14 Melee . | . . . Projectile . | . . . AOE 21 | . 7 14 Terrain Rammed . | . . . Walls Destroyed . | . . . Machines Disabled . | . . . Actions | -11 -10 -10 --------- Run | Yrd Mat Sub Total 1943 | 58 1284 601 Wait 187 | 27 155 5 Move 1537 | 20 999 518 Hop . | . . . Pick Up 45 | 2 30 13 Fast Attach . | . . . Attach 11 | . 2 9 Detach 1 | . . 1 Swap 22 | . 12 10 Drop 22 | . 13 9 Fire 118 | 9 73 36 Melee . | . . . Ram . | . . . Kick . | . . . Crush . | . . . Escape Stasis . | . . . Rewire . | . . . Trap . | . . . Miscellaneous . | . . . Route ------- -11/Scrapyard -10/Materials (discovered 5 exits: [*Mat x3] / [*Min] / [*Sub]) -10/Subcaves History --------- Turn | Location | Event 1 | -11/Scrapyard | Discovered new exit (range 3) 80 | -11/Scrapyard | Entered Materials 315 | -10/Materials | Build established: Mutant 383 | -10/Materials | Discovered new exit (range 13) 496 | -10/Materials | Discovered new exit (range 7) 671 | -10/Materials | Discovered new exit (range 16) 860 | -10/Materials | Repaired Seismic Detector 981 | -10/Materials | Discovered new exit (range 8) 1384 | -10/Materials | Discovered new exit (range 12) 2243 | -10/Materials | Entered Subcaves 2711 | -10/Subcaves | Ambushed by Subdweller buried in earth 2712 | -10/Subcaves | Core integrity fell below 50% 2773 | -10/Subcaves | Lost 4 parts (1p1n1u1w) 2778 | -10/Subcaves | Core integrity fell below 20% 3133 | -10/Subcaves | A Subdweller sparked back to life 3133 | -10/Subcaves | A Subdweller sparked back to life 3133 | -10/Subcaves | A Subdweller sparked back to life 3151 | -10/Subcaves | Destroyed by 1C-T6Y(R) with Subdweller Machine Gun Last Messages --------------- 02801_ Acquired Sub. Monowheel. 02807_ Dropped Wheel. 02837_ Acquired Sub. Monowheel. 02847_ Acquired Sub. Optics. 02848_ Dropped Sub. Optics. 02885_ Acquired Multitool. 02907_ Acquired Sub. Monowheel. 02908_ Acquired 7 matter. 02911_ Acquired 14 matter. 03018_ 42-MYP(z): "She is not going to be happy we haven't found any suitable candidates yet." 03133_ LS-I6H(R) creaks and sparks as it begins to move. 03133_ 1C-T6Y(R) creaks and sparks as it begins to move. 03133_ K6-QNE(R) creaks and sparks as it begins to move. 03142_ Hvy. Assault Rifle destroyed. 03149_ LS-I6H(R) affixes Scrap Shield Fragment to Scrap Shield. Map ----- +----------------------------------------------------+ | ???????????????????????########## #### | | ?#####??????????######### ## ### | | ?#####?????############## ### ## | | ?##"""?????"###### ##### ##### ### | | ?##" ?????"# ### #### ###### ### | | ?##" ????"# ## #### ###?## | | ?## ??? # ## ##### ## | | ?## ??? # ## ## #### # | | ?##" "# ### ### ##### # | | ???### #### ### ### ### #"" # | | ???### ### ###### #### #### # ? ## | | ???## ### ######## #### #" ""# | | ???## ######## #### ##" "# | | ???## ####??## ## ##### | | ??### ### ###?#### | | ??## ##### ####### ## # | | ######## ###### # | | ###???############ ## # ? | | # ####???????####### ### ## ? | | ### ??????????????##### ###### ####? ### ? | | ####??????########### ## ##### ###### ##### ? | | ?###??????### ##### ##?### # ######## # | | ??????????## ### ## # # ### # | | ??????????##### ## # ## # | | ?????????????#### ###### | | ?????????????##### @ R ### ## | | ???????????????#### ### R < ######## | | ????????????????#### ####